fUSD/lending_fUSD_20250221
["ID","MTS","AMOUNT","RATE_DAILY","PERIOD"]
[353860086,1740099035226,-500.0,0.00011123,2]
[353860087,1740099035237,-362.54,0.00011123,2]
[353860088,1740099035247,-500.0,0.00011123,2]
[353860089,1740099035255,-500.0,0.00011123,2]
[353860090,1740099035266,-500.0,0.00011123,2]
[353860091,1740099035275,-500.0,0.00011123,2]
[353860092,1740099035286,-500.0,0.00011123,2]
[353860093,1740099035295,-500.0,0.00011123,2]
[353860094,1740099035306,-500.0,0.00011123,2]
[353860095,1740099035317,-183.16,0.00011123,2]
[353860096,1740099035326,-500.0,0.00011123,2]
[353860097,1740099035336,-500.0,0.00011123,2]
[353860098,1740099035346,-260.75,0.00011123,2]
[353860099,1740099035355,-500.0,0.00011123,2]
[353860100,1740099035365,-500.0,0.00011123,2]
[353860101,1740099035374,-500.0,0.00011123,2]
[353860102,1740099035383,-500.0,0.00011123,2]
[353860103,1740099035393,-500.0,0.00011123,2]
[353860104,1740099035402,-354.31,0.00011123,2]
[353860105,1740099035412,-288.25,0.00011123,2]
[353860106,1740099035421,-500.0,0.00011123,2]
[353860107,1740099035431,-171.7925,0.00011123,2]
[353860108,1740099035440,-500.0,0.00011123,2]
[353860109,1740099035449,-420.56,0.00011123,2]
[353860110,1740099035458,-500.0,0.00011123,2]
[353860111,1740099035468,-500.0,0.00011123,2]
[353860112,1740099035477,-500.0,0.00011123,2]
[353860113,1740099035487,-500.0,0.00011123,2]
[353860114,1740099035496,-500.0,0.00011123,2]
[353860115,1740099035506,-500.0,0.00011123,2]
[353860116,1740099035516,-500.0,0.00011123,2]
[353860117,1740099035525,-500.0,0.00011123,2]
[353860118,1740099035535,-168.17,0.00011123,2]
[353860119,1740099035545,-500.0,0.00011123,2]
[353860120,1740099035554,-500.0,0.00011123,2]
[353860121,1740099035564,-500.0,0.00011123,2]
[353860122,1740099035574,-500.0,0.00011123,2]
[353860123,1740099035584,-660.82,0.00011123,2]
[353860124,1740099035594,-500.0,0.00011123,2]
[353860125,1740099035605,-524.068326,0.00011205,2]
[353860126,1740099035614,-233.698249,0.00011205,2]
[353860127,1740099035624,-311.597666,0.00011205,2]
[353860128,1740099035635,-2546.36,0.00011205,2]
[353860129,1740099035645,-500.0,0.00011205,2]
[353860130,1740099035655,-462.14,0.00011205,2]
[353860131,1740099035665,-500.0,0.00011205,2]
[353860132,1740099035675,-500.0,0.00011205,2]
[353860133,1740099035685,-363.21,0.00011205,2]
[353860134,1740099035694,-500.0,0.00011205,2]
[353860135,1740099035704,-500.0,0.00011205,2]
[353860136,1740099035713,-500.0,0.00011205,2]
[353860137,1740099035723,-500.0,0.00011205,2]
[353860138,1740099035732,-500.0,0.00011205,2]
[353860139,1740099035741,-500.0,0.00011205,2]
[353860140,1740099035751,-408.72,0.00011205,2]
[353860141,1740099035760,-224.21,0.00011205,2]
[353860142,1740099035770,-500.0,0.00011205,2]
[353860143,1740099035779,-500.0,0.00011205,2]
[353860144,1740099035789,-500.0,0.00011205,2]
[353860145,1740099035799,-500.0,0.00011205,2]
[353860146,1740099035808,-500.0,0.00011205,2]
[353860147,1740099035818,-500.0,0.00011205,2]
[353860148,1740099035828,-500.0,0.00011205,2]
[353860149,1740099035837,-500.0,0.00011205,2]
[353860150,1740099035847,-500.0,0.00011205,2]
[353860151,1740099035856,-500.0,0.00011205,2]
[353860152,1740099035865,-500.0,0.00011205,2]
[353860153,1740099035874,-500.0,0.00011205,2]
[353860154,1740099035884,-500.0,0.00011205,2]
[353860155,1740099035893,-500.0,0.00011205,2]
[353860156,1740099035903,-309.75,0.00011205,2]
[353860157,1740099035912,-500.0,0.00011205,2]
[353860158,1740099035921,-500.0,0.00011205,2]
[353860159,1740099035930,-500.0,0.00011205,2]
[353860160,1740099035940,-500.0,0.00011205,2]
[353860161,1740099035949,-500.0,0.00011205,2]
[353860162,1740099035959,-500.0,0.00011205,2]
[353860163,1740099035968,-660.82,0.00011205,2]
[353860164,1740099035977,-500.0,0.00011205,2]
[353860165,1740099035987,-1069.99,0.00011232,2]
[353860166,1740099035997,-524.068326,0.00011287,2]
[353860167,1740099036006,-159.64705,0.00011287,2]
[353860168,1740099036016,-152.680738,0.00011287,2]
[353860169,1740099036025,-233.698249,0.00011287,2]
[353860170,1740099036035,-311.597666,0.00011287,2]
[353860171,1740099036045,-2546.36,0.00011287,2]
[353860172,1740099036055,-500.0,0.00011287,2]
[353860173,1740099036064,-500.0,0.00011287,2]
[353860174,1740099036074,-431.17,0.00011287,2]
[353860175,1740099036083,-500.0,0.00011287,2]
[353860176,1740099036092,-500.0,0.00011287,2]
[353860177,1740099036102,-500.0,0.00011287,2]
[353860178,1740099036111,-438.27,0.00011287,2]
[353860179,1740099036120,-500.0,0.00011287,2]
[353860180,1740099036129,-500.0,0.00011287,2]
[353860181,1740099036143,-500.0,0.00011287,2]
[353860182,1740099036152,-500.0,0.00011287,2]
[353860183,1740099036161,-500.0,0.00011287,2]
[353860184,1740099036170,-500.0,0.00011287,2]
[353860185,1740099036179,-500.0,0.00011287,2]
[353860186,1740099036189,-500.0,0.00011287,2]
[353860187,1740099036198,-500.0,0.00011287,2]
[353860188,1740099036207,-500.0,0.00011287,2]
[353860189,1740099036216,-500.0,0.00011287,2]
[353860190,1740099036225,-500.0,0.00011287,2]
[353860191,1740099036238,-500.0,0.00011287,2]
[353860192,1740099036247,-500.0,0.00011287,2]
[353860193,1740099036256,-500.0,0.00011287,2]
[353860194,1740099036265,-500.0,0.00011287,2]
[353860195,1740099036275,-500.0,0.00011287,2]
[353860196,1740099036284,-500.0,0.00011287,2]
[353860197,1740099036293,-500.0,0.00011287,2]
[353860198,1740099036302,-155.21,0.00011287,2]
[353860199,1740099036312,-500.0,0.00011287,2]
[353860200,1740099036323,-500.0,0.00011287,2]
[353860201,1740099036332,-660.82,0.00011287,2]
[353860202,1740099036341,-500.0,0.00011287,2]
[353860203,1740099036350,-203.11731611,0.00011335,2]
[353860204,1740099036360,-259.96,0.00011345,2]
[353860205,1740099036369,-524.068326,0.00011369,2]
[353860206,1740099036379,-233.698249,0.00011369,2]
[353860207,1740099036388,-311.597666,0.00011369,2]
[353860208,1740099036398,-1069.99,0.00011369,2]
[353860209,1740099036407,-2546.36,0.00011369,2]
[353860210,1740099036416,-500.0,0.00011369,2]
[353860211,1740099036426,-500.0,0.00011369,2]
[353860212,1740099036436,-500.0,0.00011369,2]
[353860213,1740099036446,-500.0,0.00011369,2]
[353860214,1740099036456,-500.0,0.00011369,2]
[353860215,1740099036465,-170.13599895,0.00011369,2]
[353860216,1740099036474,-345.19,0.00011369,2]
[353860217,1740099036483,-500.0,0.00011369,2]
[353860218,1740099036492,-457.13,0.00011369,2]
[353860219,1740099036501,-500.0,0.00011369,2]
[353860220,1740099036510,-500.0,0.00011369,2]
[353860221,1740099036521,-500.0,0.00011369,2]
[353860222,1740099036531,-361.46,0.00011369,2]
[353860223,1740099036541,-500.0,0.00011369,2]
[353860224,1740099036550,-500.0,0.00011369,2]
[353860225,1740099036559,-205.75,0.00011369,2]
[353860226,1740099036568,-500.0,0.00011369,2]
[353860227,1740099036577,-500.0,0.00011369,2]
[353860228,1740099036586,-500.0,0.00011369,2]
[353860229,1740099036595,-500.0,0.00011369,2]
[353860230,1740099036605,-500.0,0.00011369,2]
[353860231,1740099036614,-500.0,0.00011369,2]
[353860232,1740099036624,-500.0,0.00011369,2]
[353860233,1740099036634,-500.0,0.00011369,2]
[353860234,1740099036643,-500.0,0.00011369,2]
[353860235,1740099036652,-660.82,0.00011369,2]
[353860236,1740099036662,-500.0,0.00011369,2]
[353860237,1740099036671,-374.45594779,0.00011372,2]
[353860238,1740099036680,-879.82,0.00011383,2]
[353860239,1740099036690,-524.068326,0.00011452,2]
[353860240,1740099036699,-233.698249,0.00011452,2]
[353860241,1740099036709,-311.597666,0.00011452,2]
[353860242,1740099036719,-2546.36,0.00011452,2]
[353860243,1740099036728,-500.0,0.00011452,2]
[353860244,1740099036738,-551.16,0.00011452,2]
[353860245,1740099036747,-500.0,0.00011452,2]
[353860246,1740099036756,-500.0,0.00011452,2]
[353860247,1740099036765,-500.0,0.00011452,2]
[353860248,1740099036774,-635.95,0.00011452,2]
[353860249,1740099036784,-370.75,0.00011452,2]
[353860250,1740099036794,-500.0,0.00011452,2]
[353860251,1740099036803,-500.0,0.00011452,2]
[353860252,1740099036812,-500.0,0.00011452,2]
[353860253,1740099036821,-500.0,0.00011452,2]
[353860254,1740099036829,-625.61,0.00011452,2]
[353860255,1740099036838,-392.3,0.00011452,2]
[353860256,1740099036847,-543.04,0.00011452,2]
[353860257,1740099036857,-500.0,0.00011452,2]
[353860258,1740099036867,-500.0,0.00011452,2]
[353860259,1740099036876,-500.0,0.00011452,2]
[353860260,1740099036885,-500.0,0.00011452,2]
[353860261,1740099036894,-500.0,0.00011452,2]
[353860262,1740099036904,-500.0,0.00011452,2]
[353860263,1740099036913,-660.82,0.00011452,2]
[353860264,1740099036922,-500.0,0.00011452,2]
[353860265,1740099036931,-1000.0,0.00011495,2]
[353860266,1740099036941,-7979.30580811,0.000115,2]
[353860267,1740099036951,-1069.99,0.00011506,2]
[353860268,1740099036961,-2751.0,0.00011507,2]
[353860269,1740099036971,-2546.36,0.00011534,2]
[353860270,1740099036980,-500.0,0.00011534,2]
[353860271,1740099036989,-500.0,0.00011534,2]
[353860272,1740099036999,-174.44,0.00011534,2]
[353860273,1740099037008,-500.0,0.00011534,2]
[353860274,1740099037017,-500.0,0.00011534,2]
[353860275,1740099037026,-500.0,0.00011534,2]
[353860276,1740099037035,-557.21,0.00011534,2]
[353860277,1740099037044,-500.0,0.00011534,2]
[353860278,1740099037054,-500.0,0.00011534,2]
[353860279,1740099037062,-500.0,0.00011534,2]
[353860280,1740099037071,-500.0,0.00011534,2]
[353860281,1740099037080,-523.76,0.00011534,2]
[353860282,1740099037089,-500.0,0.00011534,2]
[353860283,1740099037098,-500.0,0.00011534,2]
[353860284,1740099037107,-660.82,0.00011534,2]
[353860285,1740099037116,-344.31,0.00011534,2]
[353860286,1740099037125,-150.0,0.00011556,2]
[353860287,1740099037134,-2546.36,0.00011616,2]
[353860288,1740099037143,-500.0,0.00011616,2]
[353860289,1740099037152,-500.0,0.00011616,2]
[353860290,1740099037161,-172.34,0.00011616,2]
[353860291,1740099037170,-500.0,0.00011616,2]
[353860292,1740099037179,-466.71,0.00011616,2]
[353860293,1740099037188,-500.0,0.00011616,2]
[353860294,1740099037198,-355.97,0.00011616,2]
[353860295,1740099037208,-500.0,0.00011616,2]
[353860296,1740099037217,-500.0,0.00011616,2]
[353860298,1740099037228,-500.0,0.00011616,2]
[353860299,1740099037239,-500.0,0.00011616,2]
[353860300,1740099037248,-660.82,0.00011616,2]
[353860301,1740099037258,-1069.99,0.00011643,2]
[353860302,1740099037267,-2546.36,0.00011698,2]
[353860303,1740099037276,-500.0,0.00011698,2]
[353860304,1740099037285,-500.0,0.00011698,2]
[353860305,1740099037294,-500.0,0.00011698,2]
[353860306,1740099037304,-642.95318476,0.00011698,2]
[353860307,1740099037314,-156.81,0.00011698,2]
[353860308,1740099037323,-500.0,0.00011698,2]
[353860309,1740099037337,-500.0,0.00011698,2]
[353860310,1740099037354,-301.7,0.00011698,2]
[353860311,1740099037363,-660.82,0.00011698,2]
[353860312,1740099037372,-1069.99,0.0001178,2]
[353860313,1740099037382,-2546.36,0.0001178,2]
[353860314,1740099037393,-359.85,0.0001178,2]
[353860315,1740099037403,-500.0,0.0001178,2]
[353860316,1740099037411,-500.0,0.0001178,2]
[353860317,1740099037420,-500.0,0.0001178,2]
[353860318,1740099037429,-528.86,0.0001178,2]
[353860319,1740099037438,-660.82,0.0001178,2]
[353860320,1740099037446,-203.11731611,0.00011813,2]
[353860321,1740099037454,-1000.0,0.00011859,2]
[353860322,1740099037462,-2546.36,0.00011863,2]
[353860323,1740099037470,-465.08,0.00011863,2]
[353860324,1740099037479,-500.0,0.00011863,2]
[353860325,1740099037487,-500.0,0.00011863,2]
[353860326,1740099037495,-660.82,0.00011863,2]
[353860327,1740099037504,-1069.99,0.00011917,2]
[353860328,1740099037512,-2546.36,0.00011945,2]
[353860329,1740099037522,-624.013393,0.00011945,2]
[353860330,1740099037530,-500.0,0.00011945,2]
[353860331,1740099037539,-214.643781,0.00011968,3]
[353860332,1740099037547,-587.0,0.00011978,2]
[353860333,1740099037555,-600.0,0.00012,2]
[353860334,1740099037564,-2707.6681071,0.00012025,2]
[353860335,1740099037572,-7826.618101,0.00012025,2]
[353860337,1740099037581,-2546.36,0.00012027,2]
[353860339,1740099037591,-500.0,0.00012027,2]
[353860340,1740099037600,-1000.0,0.00012054,2]
[353860341,1740099037609,-1069.99,0.00012054,2]
[353860342,1740099037618,-8046.06,0.00012055,2]
[353860343,1740099037627,-2546.36,0.00012109,2]
[353860345,1740099037636,-500.0,0.00012109,2]
[353860347,1740099037646,-803.01528049,0.00012181,2]
[353860349,1740099037655,-1069.99,0.00012191,2]
[353860351,1740099037664,-2546.36,0.00012191,2]
[353860353,1740099037673,-500.0,0.00012191,2]
[353860356,1740099037682,-2546.36,0.00012273,2]
[353860359,1740099037691,-625.31,0.00012273,2]
[353860361,1740099037700,-203.11731611,0.00012291,2]
[353860363,1740099037709,-1000.0,0.00012328,2]
[353860364,1740099037718,-1069.99,0.00012328,2]
[353860367,1740099037727,-2546.36,0.00012356,2]
[353860368,1740099037737,-200.0,0.0001241,2]
[353860371,1740099037746,-2546.36,0.00012438,2]
[353860372,1740099037756,-1069.99,0.00012465,2]
[353860374,1740099037765,-259.96,0.0001248,2]
[353860377,1740099037774,-215.96714497,0.00012496,2]
[353860379,1740099037784,-203.9,0.000125,2]
[353860381,1740099037793,-500.0,0.000125,2]
[353860383,1740099037803,-2546.36,0.0001252,2]
[353860384,1740099037812,-879.82,0.00012521,2]
[353860386,1740099037821,-1000.0,0.00012602,2]
[353860388,1740099037830,-1069.99,0.00012602,2]
[353860390,1740099037839,-2546.36,0.00012602,2]
[353860392,1740099037848,-51350.83,0.00012603,2]
[353860394,1740099037857,-585.01,0.00012636,2]
[353860396,1740099037867,-595.35884583,0.00012651,2]
[353860398,1740099037876,-2546.36,0.00012684,2]
[353860400,1740099037885,-1069.99,0.00012739,2]
[353860402,1740099037895,-2546.36,0.00012767,2]
[353860404,1740099037905,-203.11731611,0.0001277,2]
[353860406,1740099037914,-374.45594779,0.00012844,2]
[353860408,1740099037923,-2546.56242481,0.00012849,2]
[353860410,1740099037932,-1069.99,0.00012876,2]
[353860412,1740099037942,-252.12,0.00012877,2]
[353860414,1740099037951,-187.85505714,0.000129,2]
[353860416,1740099037960,-23158.84095635,0.000129,2]
[353860418,1740099037970,-1335.88978907,0.000129,2]
[353860420,1740099037979,-183.57986759,0.000129,2]
[353860423,1740099037988,-300.0,0.00012999,2]
[353860425,1740099037999,-300.0,0.00012999,2]
[353860427,1740099038008,-666.0,0.00012999,2]
[353860428,1740099038018,-300.0,0.00012999,2]
[353860430,1740099038027,-666.0,0.00012999,2]
[353860432,1740099038035,-9940.97999985,0.00013,2]
[353860434,1740099038045,-700.37219969,0.00013,2]
[353860436,1740099038054,-4271.25244846,0.00013,3]
[353860438,1740099038064,-3500.0,0.00013,2]
[353860440,1740099038073,-4243.31156505,0.00013,2]
[353860442,1740099038082,-200887.69418031,0.00013,2]
[353860444,1740099038091,-472.52,0.00013,2]
[353860446,1740099038100,-472.52,0.00013,2]
[353860448,1740099038110,-472.52,0.00013,2]
[353860450,1740099038119,-472.52,0.00013,2]
[353860452,1740099038128,-472.52,0.00013,2]
[353860454,1740099038137,-472.52,0.00013,2]
[353860456,1740099038146,-472.52,0.00013,2]
[353860458,1740099038155,-472.52,0.00013,2]
[353860460,1740099038164,-472.52,0.00013,2]
[353860462,1740099038173,-472.52,0.00013,2]
[353860464,1740099038182,-472.52,0.00013,2]
[353860466,1740099038191,-472.52,0.00013,2]
[353860468,1740099038201,-472.52,0.00013,2]
[353860470,1740099038210,-472.52,0.00013,2]
[353860472,1740099038219,-472.52,0.00013,2]
[353860474,1740099038230,-472.52,0.00013,2]
[353860476,1740099038240,-472.52,0.00013,2]
[353860478,1740099038250,-472.52,0.00013,2]
[353860480,1740099038259,-472.52,0.00013,2]
[353860482,1740099038268,-472.52,0.00013,2]
[353860484,1740099038279,-472.52,0.00013,2]
[353860486,1740099038288,-472.52,0.00013,2]
[353860488,1740099038297,-472.52,0.00013,2]
[353860490,1740099038307,-472.52,0.00013,2]
[353860492,1740099038317,-472.52,0.00013,2]
[353860494,1740099038326,-472.52,0.00013,2]
[353860496,1740099038335,-472.52,0.00013,2]
[353860498,1740099038345,-472.52,0.00013,2]
[353860500,1740099038354,-472.52,0.00013,2]
[353860502,1740099038363,-472.52,0.00013,2]
[353860504,1740099038372,-472.52,0.00013,2]
[353860520,1740099038526,-472.52,0.00013,2]
[353860522,1740099038536,-472.52,0.00013,2]
[353860524,1740099038547,-472.52,0.00013,2]
[353860526,1740099038557,-472.52,0.00013,2]
[353860528,1740099038566,-472.52,0.00013,2]
[353860530,1740099038576,-472.52,0.00013,2]
[353860532,1740099038585,-472.52,0.00013,2]
[353860534,1740099038595,-472.52,0.00013,2]
[353860536,1740099038605,-472.52,0.00013,2]
[353860539,1740099038616,-472.52,0.00013,2]
[353860540,1740099038625,-472.52,0.00013,2]
[353860542,1740099038635,-472.52,0.00013,2]
[353860544,1740099038645,-472.52,0.00013,2]
[353860546,1740099038655,-472.52,0.00013,2]
[353860549,1740099038665,-472.52,0.00013,2]
[353860551,1740099038675,-472.52,0.00013,2]
[353860553,1740099038684,-472.52,0.00013,2]
[353860555,1740099038694,-472.52,0.00013,2]
[353860556,1740099038703,-1069.99,0.00013013,2]
[353860558,1740099038712,-440.27,0.00013041,2]
[353860560,1740099038721,-776.07,0.00013041,2]
[353860562,1740099038731,-440.27,0.00013041,2]
[353860564,1740099038740,-776.07,0.00013041,2]
[353860566,1740099038750,-440.27,0.00013041,2]
[353860568,1740099038760,-776.07,0.00013041,2]
[353860571,1740099038770,-776.07,0.00013041,2]
[353860572,1740099038780,-438.89,0.00013041,2]
[353860575,1740099038790,-440.27,0.00013041,2]
[353860577,1740099038800,-774.18,0.00013041,2]
[353860579,1740099038811,-1551.52,0.00013041,2]
[353860581,1740099038821,-440.27,0.00013041,2]
[353860583,1740099038831,-440.27,0.00013041,2]
[353860585,1740099038841,-440.27,0.00013041,2]
[353860587,1740099038851,-439.42,0.00013041,2]
[353860589,1740099038860,-1000.0,0.00013045,2]
[353860591,1740099038871,-5123.711447,0.0001305,2]
[353860593,1740099038882,-152.0,0.00013147,3]
[353860595,1740099038892,-1070.03492667,0.0001315,2]
[353860597,1740099038902,-1000.0,0.00013151,2]
[353860599,1740099038912,-1000.0,0.00013151,2]
[353860601,1740099038922,-1000.0,0.00013151,2]
[353860603,1740099038931,-1000.0,0.00013151,2]
[353860605,1740099038941,-1000.0,0.00013151,2]
[353860607,1740099038951,-1000.0,0.00013151,2]
[353860609,1740099038960,-1000.0,0.00013151,2]
[353860611,1740099038970,-262.0,0.00013151,2]
[353860613,1740099038980,-823.0,0.00013176,2]
[353860615,1740099038989,-4435.47733612,0.0001319,2]
[353860626,1740099039143,-500.0,0.00010958,2]
[353860627,1740099039153,-660.82,0.00011945,2]
[353860628,1740099039162,-7234.68300943,0.0001319,2]
[353860970,1740099042463,-167.0928106,0.000109,2]
[353860972,1740099042473,-335.95,0.00011041,2]
[353860974,1740099042482,-308.61314366,0.00011286,2]
[353860976,1740099042491,-660.82,0.00012027,2]
[353860978,1740099042501,-122.62704913,0.00012033,2]
[353860992,1740099042625,-296.24353826,0.00012033,2]
[353861293,1740099045569,-167.0928106,0.000119,2]
[353861295,1740099045580,-190.52413462,0.00012033,2]
[353861301,1740099045626,-549.80000011,0.00012033,2]
[353861303,1740099045639,-682.43824,0.00012033,2]
[353862737,1740099551266,204.75,0.00013918,30]
[353862740,1740099922451,322.14,8.767e-05,2]
[353862743,1740100231592,-151.71,9.537e-05,2]
[353862744,1740100231602,-500.0,9.611e-05,2]
[353862745,1740100231612,-150.0,9.611e-05,2]
[353862746,1740100231621,-538.73,9.835e-05,2]
[353862747,1740100231630,-150.0,9.878e-05,2]
[353862748,1740100231641,-1060.0,0.00010464,2]
[353862749,1740100231650,-500.0,0.00010491,2]
[353862750,1740100231659,-500.0,0.00010491,2]
[353862751,1740100231669,-150.0,0.00010491,2]
[353862752,1740100231679,-152.96,0.00010964,2]
[353862753,1740100231688,-151.89,0.00010964,2]
[353862754,1740100231697,-300.0,0.00011014,2]
[353862755,1740100231707,-1060.0,0.00011015,2]
[353862756,1740100231716,-152.95,0.00011032,2]
[353862757,1740100231728,-500.0,0.00011064,2]
[353862758,1740100231737,-500.0,0.00011064,2]
[353862759,1740100231747,-4432.19928796,0.00011227,2]
[353862760,1740100231759,-7453.55953814,0.00011227,2]
[353862761,1740100231772,-541.02982009,0.00011227,2]
[353862762,1740100231784,-623.36980975,0.00011227,2]
[353862763,1740100231796,-8771.57786646,0.00011227,2]
[353862764,1740100231816,-1811.79400921,0.00011227,2]
[353862765,1740100231828,-266.46966839,0.00011227,2]
[353862766,1740100231839,-177.5,0.00011255,2]
[353862767,1740100231849,-729.68,0.00011288,2]
[353862768,1740100231859,-1289.74335239,0.00011299,2]
[353862769,1740100231872,-710.25664761,0.00011299,2]
[353862770,1740100231882,-77.46872348,0.00011348,2]
[353862771,1740100231894,-367.35042861,0.00011348,2]
[353862772,1740100231906,-315.0,0.00011348,2]
[353862773,1740100231919,-240.18084791,0.00011348,2]
[353862774,1740100231929,-165.83,0.00011359,2]
[353862775,1740100231939,-452.14,0.0001142,2]
[353862776,1740100231950,-516.74915209,0.000115,5]
[353862777,1740100231962,-5035.25084791,0.000115,5]
[353862785,1740100232159,-168.71,0.00011582,2]
[353862786,1740100232169,-1060.0,0.00011595,2]
[353862788,1740100232179,-1333.62,0.00011615,2]
[353862789,1740100232189,-500.0,0.00012027,2]
[353862790,1740100232198,-925.18974812,0.00012056,2]
[353862791,1740100232208,-538.73,0.00012099,2]
[353862792,1740100232218,-420.0,0.00012103,2]
[353862793,1740100232228,-1060.0,0.00012205,2]
[353862794,1740100232237,-500.0,0.00012329,2]
[353862796,1740100232251,-2071.89360879,0.00012371,2]
[353862798,1740100232260,-2071.89360879,0.00012381,2]
[353862800,1740100232270,-2071.89360879,0.00012392,2]
[353862802,1740100232281,-2071.89360879,0.00012404,2]
[353862805,1740100232290,-1000.0,0.0001249,2]
[353862807,1740100232299,-150.68,0.00012533,2]
[353862809,1740100232309,-250.0,0.00012601,2]
[353862811,1740100232319,-1000.0,0.00012766,2]
[353862813,1740100232328,-1060.0,0.00012815,2]
[353862815,1740100232338,-550.0,0.00012877,2]
[353862817,1740100232348,-203.11731611,0.000129,2]
[353862819,1740100232358,-57412.8949,0.0001299,2]
[353862821,1740100232367,-198.0,0.00013,3]
[353862822,1740100232377,-198.0,0.00013,3]
[353862823,1740100232387,-198.0,0.00013,2]
[353862824,1740100232397,-198.0,0.00013,2]
[353862825,1740100232406,-198.0,0.00013,3]
[353862826,1740100232416,-198.0,0.00013,3]
[353862827,1740100232426,-167.4594153,0.00013,2]
[353862828,1740100232435,-4852.50253107,0.00013,2]
[353862829,1740100232445,-300.0,0.00013041,2]
[353862830,1740100232454,-1030.375,0.00013068,2]
[353862831,1740100232464,-300.0,0.00013075,2]
[353862832,1740100232474,-985.13,0.00013075,2]
[353862833,1740100232484,-300.0,0.00013075,2]
[353862834,1740100232493,-300.0,0.00013075,2]
[353862835,1740100232503,-500.0,0.00013089,2]
[353862836,1740100232512,-500.0,0.00013089,2]
[353862837,1740100232522,-251.35305262,0.00013089,2]
[353862838,1740100232531,-500.0,0.00013089,2]
[353862839,1740100232541,-500.0,0.00013089,2]
[353862840,1740100232551,-191.31764018,0.00013089,2]
[353862841,1740100232560,-500.0,0.00013089,2]
[353862842,1740100232570,-500.0,0.00013089,2]
[353862843,1740100232580,-484.00486857,0.00013089,2]
[353862844,1740100232590,-500.0,0.00013089,2]
[353862845,1740100232599,-316.47595909,0.00013089,2]
[353862846,1740100232609,-500.0,0.00013089,2]
[353862847,1740100232618,-500.0,0.00013089,2]
[353862848,1740100232628,-500.0,0.00013089,2]
[353862849,1740100232637,-500.0,0.00013089,2]
[353862850,1740100232647,-325.80986693,0.00013089,2]
[353862851,1740100232656,-309.80228394,0.0001309,2]
[353862852,1740100232666,-190247.93937696,0.0001309,2]
[353862853,1740100232679,-6683.26958659,0.0001309,2]
[353862854,1740100232691,-1500.0,0.0001309,2]
[353862855,1740100232703,-5152.05092008,0.0001309,2]
[353863037,1740100239696,-716.27762427,9.878e-05,2]
[353863039,1740100239708,-1953.80552984,9.878e-05,2]
[353863055,1740100239857,-343.42842003,9.878e-05,2]
[353863073,1740100240020,-273.25930623,9.878e-05,2]
[353863075,1740100240029,-303.67068645,0.0001309,2]
[353863077,1740100240042,-787.38200001,0.0001309,2]
[353863080,1740100240053,-1448.5470995,0.0001309,2]
[353863651,1740100245610,-362.2774596,0.0001309,2]
[353863679,1740100245772,-1549.88033384,0.0001309,2]
[353863682,1740100245783,-279.6363521,0.0001309,2]
[353863711,1740100245915,-2733.38035353,0.0001309,2]